fUST/lending_fUST_20250712
["ID","MTS","AMOUNT","RATE_DAILY","PERIOD"]
[371215407,1752250249242,-460.0,0.00016712,2]
[371215409,1752250249252,-460.0,0.00016712,2]
[371215412,1752250249273,-616.26,0.00016712,2]
[371215413,1752250249284,-460.0,0.00016712,2]
[371215415,1752250249297,-460.0,0.00016712,2]
[371215417,1752250249314,-460.0,0.00016712,2]
[371215419,1752250249324,-723.8,0.00016712,2]
[371215421,1752250249334,-460.0,0.00016712,2]
[371215423,1752250249344,-460.0,0.00016712,2]
[371215424,1752250249354,-460.0,0.00016712,2]
[371215426,1752250249364,-460.0,0.00016712,2]
[371215428,1752250249374,-460.0,0.00016712,2]
[371215430,1752250249385,-518.17125285,0.00016712,2]
[371215432,1752250249395,-460.0,0.00016712,2]
[371215433,1752250249405,-460.0,0.00016712,2]
[371215435,1752250249415,-460.0,0.00016712,2]
[371215437,1752250249425,-7201.01,0.00016712,2]
[371215439,1752250249435,-465.41,0.00016712,2]
[371215441,1752250249445,-460.0,0.00016712,2]
[371215443,1752250249454,-616.6,0.00016712,2]
[371215444,1752250249464,-460.0,0.00016712,2]
[371215446,1752250249474,-460.0,0.00016712,2]
[371215448,1752250249484,-1217.99,0.00016712,2]
[371215450,1752250249495,-500.0,0.00016712,2]
[371215452,1752250249506,-1517.24653682,0.00016729,2]
[371215454,1752250249519,-500.0,0.00016739,2]
[371215456,1752250249530,-500.0,0.00016767,2]
[371215458,1752250249539,-500.71987847,0.00016773,2]
[371215460,1752250249549,-347.54270452,0.00016773,2]
[371215461,1752250249559,-500.0,0.00016773,2]
[371215463,1752250249569,-500.0,0.00016773,2]
[371215465,1752250249579,-478.00359408,0.00016773,2]
[371215467,1752250249589,-500.0,0.00016773,2]
[371215469,1752250249599,-500.0,0.00016773,2]
[371215471,1752250249609,-500.0,0.00016773,2]
[371215472,1752250249619,-500.91344477,0.00016773,2]
[371215474,1752250249629,-500.0,0.00016773,2]
[371215476,1752250249639,-500.0,0.00016773,2]
[371215478,1752250249649,-625.08542561,0.00016773,2]
[371215480,1752250249659,-500.0,0.00016773,2]
[371215482,1752250249670,-500.0,0.00016773,2]
[371215483,1752250249680,-500.0,0.00016773,2]
[371215485,1752250249690,-500.0,0.00016773,2]
[371215487,1752250249700,-500.0,0.00016773,2]
[371215489,1752250249710,-500.0,0.00016773,2]
[371215491,1752250249720,-500.0,0.00016773,2]
[371215493,1752250249730,-500.0,0.00016773,2]
[371215494,1752250249740,-500.0,0.00016773,2]
[371215496,1752250249750,-500.0,0.00016773,2]
[371215498,1752250249761,-618.91007682,0.00016773,2]
[371215500,1752250249771,-500.0,0.00016773,2]
[371215502,1752250249784,-500.0,0.00016773,2]
[371215504,1752250249793,-500.0,0.00016773,2]
[371215505,1752250249802,-500.0,0.00016773,2]
[371215507,1752250249812,-159.31874715,0.00016773,2]
[371215509,1752250249822,-500.0,0.00016773,2]
[371215511,1752250249832,-500.0,0.00016773,2]
[371215513,1752250249841,-500.0,0.00016773,2]
[371215515,1752250249852,-500.0,0.00016773,2]
[371215516,1752250249861,-500.0,0.00016773,2]
[371215518,1752250249871,-500.0,0.00016773,2]
[371215520,1752250249880,-500.0,0.00016773,2]
[371215523,1752250249893,-500.0,0.00016773,2]
[371215524,1752250249903,-532.60748246,0.00016781,2]
[371215526,1752250249912,-500.0,0.00016794,2]
[371215528,1752250249922,-151.0,0.000168,2]
[371215530,1752250249932,-230.0,0.00016822,2]
[371215532,1752250249942,-848.8160226,0.00016892,2]
[371215533,1752250249968,-12593.36377651,0.00016892,2]
[371215535,1752250249979,-160.0,0.00016892,2]
[371215537,1752250249989,-215.34660517,0.00016892,2]
[371215539,1752250249999,-230.60106897,0.00016892,2]
[371215541,1752250250010,-838.22799064,0.00016892,2]
[371215543,1752250250023,-160.0,0.00016892,2]
[371215545,1752250250033,-160.0,0.00016894,2]
[371215547,1752250250043,-160.0,0.00016894,2]
[371215549,1752250250053,-151.0,0.000169,2]
[371215551,1752250250063,-576.4023755,0.000169,2]
[371215552,1752250250073,-177.8772699,0.000169,2]
[371215554,1752250250083,-177.8772699,0.000169,2]
[371215556,1752250250093,-477.3055427,0.000169,2]
[371215558,1752250250103,-177.8772699,0.000169,2]
[371215560,1752250250114,-177.8772699,0.000169,2]
[371215562,1752250250126,-177.8772699,0.000169,2]
[371215564,1752250250136,-10065.06988081,0.000169,2]
[371215566,1752250250146,-259.631671,0.000169,2]
[371215568,1752250250156,-177.8772699,0.000169,2]
[371215570,1752250250165,-177.8772699,0.000169,2]
[371215572,1752250250175,-306.2751467,0.000169,2]
[371215574,1752250250185,-177.8772699,0.000169,2]
[371215576,1752250250195,-1455.19,0.00016906,2]
[371215577,1752250250204,-271.0,0.00016939,2]
[371215579,1752250250214,-165.017512,0.00016981,2]
[371215581,1752250250224,-1455.19,0.00016985,2]
[371215583,1752250250234,-1455.19,0.00016985,2]
[371215585,1752250250244,-1455.19,0.00016985,2]
[371215587,1752250250254,-1455.19,0.00016985,2]
[371215589,1752250250268,-1455.19,0.00016985,2]
[371215591,1752250250277,-1455.19,0.00016985,2]
[371215593,1752250250287,-1455.25869517,0.00016985,2]
[371215595,1752250250297,-460.0,0.00016986,2]
[371215597,1752250250308,-460.0,0.00016986,2]
[371215599,1752250250319,-460.0,0.00016986,2]
[371215601,1752250250329,-460.0,0.00016986,2]
[371215603,1752250250339,-460.0,0.00016986,2]
[371215605,1752250250348,-460.0,0.00016986,2]
[371215607,1752250250358,-460.0,0.00016986,2]
[371215608,1752250250370,-460.0,0.00016986,2]
[371215610,1752250250380,-460.0,0.00016986,2]
[371215612,1752250250389,-460.0,0.00016986,2]
[371215614,1752250250399,-460.0,0.00016986,2]
[371215616,1752250250409,-460.0,0.00016986,2]
[371215618,1752250250419,-500.0,0.00016986,2]
[371215620,1752250250429,-693.55,0.00016986,2]
[371215622,1752250250439,-460.0,0.00016986,2]
[371215624,1752250250448,-460.0,0.00016986,2]
[371215626,1752250250458,-460.0,0.00016986,2]
[371215627,1752250250468,-460.0,0.00016986,2]
[371215629,1752250250478,-460.0,0.00016986,2]
[371215631,1752250250488,-460.0,0.00016986,2]
[371215633,1752250250498,-246.9268053,0.00016986,2]
[371215635,1752250250508,-460.0,0.00016986,2]
[371215637,1752250250521,-460.0,0.00016986,2]
[371215639,1752250250530,-460.0,0.00016986,2]
[371215641,1752250250540,-460.0,0.00016986,2]
[371215643,1752250250550,-460.0,0.00016986,2]
[371215645,1752250250560,-600.67,0.00016986,2]
[371215647,1752250250570,-460.0,0.00016986,2]
[371215649,1752250250580,-460.0,0.00016986,2]
[371215650,1752250250589,-460.0,0.00016986,2]
[371215652,1752250250599,-460.0,0.00016986,2]
[371215654,1752250250608,-460.0,0.00016986,2]
[371215656,1752250250619,-460.0,0.00016986,2]
[371215658,1752250250628,-505.60482791,0.00016986,2]
[371215660,1752250250637,-460.0,0.00016986,2]
[371215662,1752250250647,-460.0,0.00016986,2]
[371215664,1752250250657,-460.0,0.00016986,2]
[371215666,1752250250667,-293.3,0.00016986,2]
[371215668,1752250250677,-460.0,0.00016986,2]
[371215670,1752250250686,-460.0,0.00016986,2]
[371215671,1752250250696,-328.00761279,0.00016986,2]
[371215673,1752250250706,-460.0,0.00016986,2]
[371215675,1752250250716,-460.0,0.00016986,2]
[371215677,1752250250727,-460.0,0.00016986,2]
[371215679,1752250250736,-681.67,0.00016986,2]
[371215681,1752250250746,-460.0,0.00016986,2]
[371215683,1752250250756,-460.0,0.00016986,2]
[371215685,1752250250769,-460.0,0.00016986,2]
[371215687,1752250250783,-460.0,0.00016986,2]
[371215689,1752250250793,-460.0,0.00016986,2]
[371215691,1752250250802,-460.0,0.00016986,2]
[371215693,1752250250812,-616.13,0.00016986,2]
[371215695,1752250250823,-460.0,0.00016986,2]
[371215697,1752250250833,-460.0,0.00016986,2]
[371215699,1752250250843,-460.0,0.00016986,2]
[371215701,1752250250854,-460.0,0.00016986,2]
[371215703,1752250250865,-460.0,0.00016986,2]
[371215705,1752250250875,-460.0,0.00016986,2]
[371215707,1752250250885,-535.49679849,0.00016986,2]
[371215709,1752250250895,-460.0,0.00016986,2]
[371215711,1752250250905,-460.0,0.00016986,2]
[371215713,1752250250914,-460.0,0.00016986,2]
[371215714,1752250250924,-460.0,0.00016986,2]
[371215716,1752250250935,-460.0,0.00016986,2]
[371215718,1752250250945,-562.7,0.00016986,2]
[371215720,1752250250955,-460.0,0.00016986,2]
[371215721,1752250250973,-585.07852262,0.00016986,2]
[371215723,1752250250982,-460.0,0.00016986,2]
[371215725,1752250250992,-460.0,0.00016986,2]
[371215727,1752250251001,-460.0,0.00016986,2]
[371215729,1752250251013,-460.0,0.00016986,2]
[371215731,1752250251022,-460.0,0.00016986,2]
[371215733,1752250251033,-460.0,0.00016986,2]
[371215734,1752250251043,-460.0,0.00016986,2]
[371215736,1752250251053,-462.28506922,0.00016986,2]
[371215738,1752250251062,-460.0,0.00016986,2]
[371215740,1752250251072,-152.90457769,0.00016986,2]
[371215742,1752250251082,-476.34111853,0.00016986,2]
[371215744,1752250251092,-460.0,0.00016986,2]
[371215746,1752250251102,-5187.5,0.00016986,2]
[371215748,1752250251112,-460.0,0.00016986,2]
[371215749,1752250251122,-460.0,0.00016986,2]
[371215751,1752250251132,-500.0,0.00016986,2]
[371215753,1752250251142,-227.09,0.00016986,2]
[371215755,1752250251152,-460.0,0.00016986,2]
[371215757,1752250251161,-460.0,0.00016986,2]
[371215759,1752250251171,-460.0,0.00016986,2]
[371215761,1752250251181,-460.0,0.00016986,2]
[371215763,1752250251191,-460.0,0.00016986,2]
[371215765,1752250251201,-510.19846125,0.00016986,2]
[371215767,1752250251211,-460.0,0.00016986,2]
[371215768,1752250251222,-460.0,0.00016986,2]
[371215770,1752250251232,-537.93,0.00016986,2]
[371215772,1752250251243,-460.0,0.00016986,2]
[371215774,1752250251253,-1570.53,0.00016986,2]
[371215776,1752250251267,-460.0,0.00016986,2]
[371215778,1752250251284,-460.0,0.00016986,2]
[371215780,1752250251297,-460.0,0.00016986,2]
[371215782,1752250251308,-460.0,0.00016986,2]
[371215784,1752250251318,-489.51,0.00016986,2]
[371215786,1752250251329,-460.0,0.00016986,2]
[371215788,1752250251339,-460.0,0.00016986,2]
[371215789,1752250251349,-460.0,0.00016986,2]
[371215791,1752250251359,-705.4,0.00016986,2]
[371215793,1752250251369,-460.0,0.00016986,2]
[371215795,1752250251380,-460.0,0.00016986,2]
[371215797,1752250251390,-460.0,0.00016986,2]
[371215799,1752250251400,-460.0,0.00016986,2]
[371215801,1752250251410,-460.0,0.00016986,2]
[371215803,1752250251420,-728.36,0.00016986,2]
[371215804,1752250251431,-460.0,0.00016986,2]
[371215806,1752250251442,-460.0,0.00016986,2]
[371215808,1752250251452,-2843.37,0.00016986,2]
[371215826,1752250251642,-460.0,0.00016986,2]
[371215828,1752250251653,-460.0,0.00016986,2]
[371215829,1752250251663,-460.0,0.00016986,2]
[371215831,1752250251672,-460.0,0.00016986,2]
[371215833,1752250251682,-460.0,0.00016986,2]
[371215835,1752250251692,-460.0,0.00016986,2]
[371215837,1752250251702,-460.0,0.00016986,2]
[371215839,1752250251712,-460.0,0.00016986,2]
[371215840,1752250251721,-583.87,0.00016986,2]
[371215841,1752250251731,-473.72137042,0.00016986,2]
[371215842,1752250251740,-1922.0,0.00016986,2]
[371215843,1752250251750,-460.0,0.00016986,2]
[371215844,1752250251763,-703.52,0.00016986,2]
[371215845,1752250251775,-624.64,0.00016986,2]
[371215846,1752250251788,-460.0,0.00016986,2]
[371215847,1752250251799,-2164.95,0.00016986,2]
[371215848,1752250251811,-460.0,0.00016986,2]
[371215849,1752250251820,-3581.41,0.00016986,2]
[371215850,1752250251831,-460.0,0.00016986,2]
[371215851,1752250251841,-460.0,0.00016986,2]
[371215852,1752250251852,-460.0,0.00016986,2]
[371215853,1752250251862,-460.0,0.00016986,2]
[371215854,1752250251871,-460.0,0.00016986,2]
[371215855,1752250251880,-460.0,0.00016986,2]
[371215856,1752250251889,-460.0,0.00016986,2]
[371215857,1752250251899,-460.0,0.00016986,2]
[371215858,1752250251909,-460.0,0.00016986,2]
[371215859,1752250251919,-460.0,0.00016986,2]
[371215860,1752250251929,-460.0,0.00016986,2]
[371215861,1752250251939,-661.77,0.00016986,2]
[371215862,1752250251948,-460.0,0.00016986,2]
[371215863,1752250251958,-460.0,0.00016986,2]
[371215864,1752250251967,-602.09702635,0.00016986,2]
[371215865,1752250251976,-460.0,0.00016986,2]
[371215866,1752250251986,-460.0,0.00016986,2]
[371215867,1752250251996,-607.46,0.00016986,2]
[371215869,1752250252006,-569.12,0.00016986,2]
[371215871,1752250252020,-462.26481066,0.00016986,2]
[371215873,1752250252030,-460.0,0.00016986,2]
[371215875,1752250252040,-460.0,0.00016986,2]
[371215877,1752250252050,-2744.71,0.00016986,2]
[371215879,1752250252061,-460.0,0.00016986,2]
[371215881,1752250252070,-460.0,0.00016986,2]
[371215883,1752250252080,-774.29,0.00016986,2]
[371215884,1752250252090,-564.12,0.00016986,2]
[371215886,1752250252099,-1815.07,0.00016986,2]
[371215889,1752250252109,-1144.75,0.00016986,2]
[371215891,1752250252119,-460.0,0.00016986,2]
[371215892,1752250252128,-460.0,0.00016986,2]
[371215894,1752250252138,-1289.23,0.00016986,2]
[371215897,1752250252150,-1102.09,0.00016986,2]
[371215899,1752250252160,-3884.61,0.00016986,2]
[371215900,1752250252170,-460.0,0.00016986,2]
[371215902,1752250252179,-460.0,0.00016986,2]
[371215904,1752250252189,-460.0,0.00016986,2]
[371215906,1752250252198,-460.0,0.00016986,2]
[371215908,1752250252208,-460.0,0.00016986,2]
[371215911,1752250252218,-460.0,0.00016986,2]
[371215913,1752250252229,-460.0,0.00016986,2]
[371215915,1752250252239,-2597.74,0.00016986,2]
[371215917,1752250252248,-912.87,0.00016986,2]
[371215919,1752250252258,-152.88070772,0.00016986,2]
[371215921,1752250252270,-460.0,0.00016986,2]
[371215923,1752250252280,-460.0,0.00016986,2]
[371215925,1752250252290,-460.0,0.00016986,2]
[371215927,1752250252299,-472.87,0.00016986,2]
[371215929,1752250252314,-460.0,0.00016986,2]
[371215931,1752250252323,-460.0,0.00016986,2]
[371215933,1752250252333,-460.0,0.00016986,2]
[371215935,1752250252342,-460.0,0.00016986,2]
[371215937,1752250252353,-558.94869864,0.00016986,2]
[371215939,1752250252363,-460.0,0.00016986,2]
[371215941,1752250252373,-460.0,0.00016986,2]
[371215943,1752250252382,-713.26,0.00016986,2]
[371215945,1752250252392,-460.0,0.00016986,2]
[371215947,1752250252402,-1071.74,0.00016986,2]
[371215950,1752250252412,-460.0,0.00016986,2]
[371215952,1752250252422,-460.0,0.00016986,2]
[371215954,1752250252431,-460.0,0.00016986,2]
[371215956,1752250252441,-460.0,0.00016986,2]
[371215958,1752250252450,-460.0,0.00016986,2]
[371215959,1752250252460,-460.0,0.00016986,2]
[371215961,1752250252470,-1749.93,0.00016986,2]
[371215964,1752250252479,-460.0,0.00016986,2]
[371215966,1752250252489,-460.0,0.00016986,2]
[371215968,1752250252499,-460.0,0.00016986,2]
[371215970,1752250252509,-2402.8,0.00016986,2]
[371215972,1752250252520,-460.0,0.00016986,2]
[371215974,1752250252530,-460.0,0.00016986,2]
[371215976,1752250252539,-2096.25,0.00016986,2]
[371215978,1752250252548,-460.0,0.00016986,2]
[371215980,1752250252557,-460.0,0.00016986,2]
[371215982,1752250252567,-460.0,0.00016986,2]
[371215984,1752250252576,-460.0,0.00016986,2]
[371215986,1752250252586,-460.0,0.00016986,2]
[371215988,1752250252596,-460.0,0.00016986,2]
[371215990,1752250252606,-460.0,0.00016986,2]
[371215992,1752250252616,-606.2,0.00016986,2]
[371215994,1752250252625,-461.78505742,0.00016986,2]
[371215996,1752250252635,-460.0,0.00016986,2]
[371215998,1752250252644,-1693.46,0.00016986,2]
[371216000,1752250252653,-779.8,0.00016986,2]
[371216002,1752250252663,-460.0,0.00016986,2]
[371216004,1752250252672,-460.0,0.00016986,2]
[371216006,1752250252682,-460.0,0.00016986,2]
[371216008,1752250252692,-433.11712663,0.00016986,2]
[371216010,1752250252701,-460.0,0.00016986,2]
[371216012,1752250252711,-460.0,0.00016986,2]
[371216014,1752250252720,-460.0,0.00016986,2]
[371216016,1752250252730,-460.0,0.00016986,2]
[371216018,1752250252739,-616.26,0.00016986,2]
[371216020,1752250252748,-460.0,0.00016986,2]
[371216022,1752250252757,-460.0,0.00016986,2]
[371216024,1752250252771,-267.912075,0.00016986,2]
[371216026,1752250252784,-460.0,0.00016986,2]
[371216028,1752250252793,-723.8,0.00016986,2]
[371216030,1752250252802,-460.0,0.00016986,2]
[371216032,1752250252812,-502.1042349,0.00016986,2]
[371216034,1752250252822,-460.0,0.00016986,2]
[371216036,1752250252833,-460.0,0.00016986,2]
[371216038,1752250252843,-7201.01,0.00016986,2]
[371216040,1752250252856,-465.41,0.00016986,2]
[371216042,1752250252869,-461.08488211,0.00016986,2]
[371216044,1752250252878,-151.0,0.00016986,2]
[371216046,1752250252888,-616.6,0.00016986,2]
[371216048,1752250252898,-460.0,0.00016986,2]
[371216050,1752250252908,-460.0,0.00016986,2]
[371216052,1752250252918,-500.0,0.00016986,2]
[371216054,1752250252927,-300.0,0.0001699,2]
[371216056,1752250252937,-576.4023755,0.00017,2]
[371216058,1752250252946,-177.8772699,0.00017,2]
[371216060,1752250252955,-153.0,0.00017,2]
[371216062,1752250252965,-153.0,0.00017,2]
[371216064,1752250252974,-177.8772699,0.00017,2]
[371216066,1752250252983,-576.4023755,0.00017,2]
[371216068,1752250252993,-153.0,0.00017,2]
[371216070,1752250253003,-177.8772699,0.00017,2]
[371216072,1752250253013,-177.8772699,0.00017,2]
[371216074,1752250253023,-153.0,0.00017,2]
[371216076,1752250253032,-576.4023755,0.00017,2]
[371216078,1752250253041,-114629.77657755,0.00017,3]
[371216098,1752250253225,-7800.43234923,0.00017,3]
[371216101,1752250253242,-17531.2662801,0.00017,3]
[371216103,1752250253252,-576.4023755,0.00017,2]
[371216105,1752250253266,-428.8165762,0.00017,2]
[371216107,1752250253275,-153.0,0.00017,2]
[371216109,1752250253285,-151.0,0.00017,2]
[371216111,1752250253295,-151.0,0.00017,2]
[371216113,1752250253305,-848.8160226,0.00017,3]
[371216115,1752250253315,-151.313501,0.00017,2]
[371216117,1752250253325,-151.0,0.00017,2]
[371216119,1752250253335,-151.0,0.00017,2]
[371216121,1752250253345,-151.0,0.00017,2]
[371216123,1752250253354,-326.989455,0.00017,2]
[371216124,1752250253363,-326.989455,0.00017,2]
[371216126,1752250253373,-151.152891,0.00017,2]
[371216129,1752250253382,-151.0,0.00017,2]
[371216130,1752250253392,-151.0,0.00017,2]
[371216132,1752250253402,-151.0,0.00017,2]
[371216134,1752250253411,-151.0,0.00017,2]
[371216136,1752250253421,-151.0,0.00017,2]
[371216138,1752250253431,-185.698377,0.00017,2]
[371216140,1752250253440,-185.698377,0.00017,2]
[371216142,1752250253450,-214.21419754,0.00017,3]
[371216144,1752250253460,-151.0,0.00017,2]
[371216146,1752250253469,-186.549044,0.00017,2]
[371216148,1752250253479,-186.549044,0.00017,2]
[371216150,1752250253488,-238.134045,0.00017,2]
[371216152,1752250253498,-238.134045,0.00017,2]
[371216154,1752250253508,-151.0,0.00017,2]
[371216156,1752250253521,-7269.73519772,0.00017034,2]
[371216159,1752250253530,-21591.48598508,0.00017034,2]
[371216162,1752250253539,-207.4,0.00017034,2]
[371216165,1752250253548,-151.0,0.00017034,2]
[371216167,1752250253558,-151.0,0.00017034,2]
[371216170,1752250253567,-1000.0,0.00017034,2]
[371216172,1752250253576,-151.0,0.00017034,2]
[371216174,1752250253586,-151.0,0.00017034,2]
[371216176,1752250253595,-1000.0,0.00017034,2]
[371216178,1752250253608,-151.0,0.00017034,2]
[371216180,1752250253618,-1000.0,0.00017034,2]
[371216182,1752250253627,-151.0,0.00017034,2]
[371216184,1752250253636,-1000.0,0.00017034,2]
[371216186,1752250253645,-151.0,0.00017034,2]
[371216188,1752250253655,-1000.0,0.00017034,2]
[371216190,1752250253665,-151.0,0.00017034,2]
[371216192,1752250253674,-1000.0,0.00017034,2]
[371216194,1752250253683,-151.0,0.00017034,2]
[371216196,1752250253692,-1000.0,0.00017034,2]
[371216198,1752250253702,-151.0,0.00017034,2]
[371216200,1752250253711,-1000.0,0.00017034,2]
[371216203,1752250253721,-151.0,0.00017034,2]
[371216204,1752250253731,-1000.0,0.00017034,2]
[371216207,1752250253740,-1000.0,0.00017034,2]
[371216208,1752250253750,-1000.0,0.00017034,2]
[371216210,1752250253759,-1000.0,0.00017034,2]
[371216212,1752250253772,-151.0,0.00017034,2]
[371216214,1752250253785,-151.0,0.00017034,2]
[371216217,1752250253795,-151.0,0.00017034,2]
[371216219,1752250253805,-151.0,0.00017034,2]
[371216221,1752250253816,-151.0,0.00017034,2]
[371216234,1752250253826,-1000.0,0.00017034,2]
[371216236,1752250253950,-300.0,0.00017034,2]
[371216238,1752250253960,-1000.0,0.00017034,2]
[371216240,1752250253969,-300.0,0.00017034,2]
[371216242,1752250253979,-151.0,0.00017034,2]
[371216244,1752250253988,-1000.0,0.00017034,2]
[371216246,1752250253998,-151.0,0.00017034,2]
[371216248,1752250254008,-1000.0,0.00017034,2]
[371216250,1752250254020,-300.0,0.00017034,2]
[371216252,1752250254030,-300.0,0.00017034,2]
[371216254,1752250254040,-300.0,0.00017034,2]
[371216256,1752250254050,-151.0,0.00017034,2]
[371216258,1752250254059,-300.0,0.00017034,2]
[371216260,1752250254069,-300.0,0.00017034,2]
[371216262,1752250254079,-397.69074993,0.00017034,2]
[371216264,1752250254089,-25000.0,0.00017034,2]
[371216266,1752250254099,-151.0,0.00017034,2]
[371216268,1752250254109,-23062.71993098,0.00017034,2]
[371216270,1752250254119,-151.0,0.00017034,2]
[371216272,1752250254129,-151.0,0.00017034,2]
[371216274,1752250254139,-151.0,0.00017034,2]
[371216276,1752250254148,-151.0,0.00017034,2]
[371216278,1752250254158,-151.0,0.00017034,2]
[371216280,1752250254167,-151.0,0.00017034,2]
[371216282,1752250254178,-151.0,0.00017034,2]
[371216284,1752250254188,-151.0,0.00017034,2]
[371216286,1752250254198,-151.0,0.00017034,2]
[371216288,1752250254209,-151.0,0.00017034,2]
[371216290,1752250254219,-151.0,0.00017034,2]
[371216292,1752250254228,-151.0,0.00017034,2]
[371216294,1752250254238,-20235.88582215,0.00017087,2]
[371216296,1752250254248,-716.195754,0.00017089,2]
[371216298,1752250254257,-153.0,0.000171,2]
[371216300,1752250254271,-177.8772699,0.000171,2]
[371216302,1752250254280,-576.4023755,0.000171,2]
[371216304,1752250254290,-151.0,0.000171,2]
[371216306,1752250254301,-1517.24653682,0.00017119,2]
[371216308,1752250254311,-776.12236179,0.00017162,2]
[371216310,1752250254321,-10065.06988052,0.00017176,2]
[371216312,1752250254331,-648.27442719,0.00017199,2]
[371216314,1752250254341,-151.0,0.000172,2]
[371216316,1752250254351,-165.017512,0.00017202,2]
[371216318,1752250254361,-219.45233441,0.0001726,2]
[371216320,1752250254370,-460.0,0.0001726,2]
[371216322,1752250254381,-460.0,0.0001726,2]
[371216324,1752250254390,-435.2613308,0.0001726,2]
[371216326,1752250254400,-460.0,0.0001726,2]
[371216328,1752250254410,-460.0,0.0001726,2]
[371216330,1752250254419,-460.0,0.0001726,2]
[371216331,1752250254429,-460.0,0.0001726,2]
[371216333,1752250254438,-500.0,0.0001726,2]
[371216335,1752250254448,-693.55,0.0001726,2]
[371216337,1752250254457,-460.0,0.0001726,2]
[371216339,1752250254467,-460.0,0.0001726,2]
[371216341,1752250254476,-460.0,0.0001726,2]
[371216343,1752250254485,-460.0,0.0001726,2]
[371216345,1752250254495,-460.0,0.0001726,2]
[371216347,1752250254505,-460.0,0.0001726,2]
[371216349,1752250254518,-460.0,0.0001726,2]
[371216351,1752250254527,-600.67,0.0001726,2]
[371216353,1752250254538,-460.0,0.0001726,2]
[371216355,1752250254548,-460.0,0.0001726,2]
[371216357,1752250254558,-291.38,0.0001726,2]
[371216359,1752250254568,-460.0,0.0001726,2]
[371216361,1752250254578,-460.0,0.0001726,2]
[371216363,1752250254587,-280.16985111,0.0001726,2]
[371216365,1752250254597,-460.0,0.0001726,2]
[371216367,1752250254607,-460.0,0.0001726,2]
[371216369,1752250254616,-681.67,0.0001726,2]
[371216371,1752250254626,-588.39625413,0.0001726,2]
[371216373,1752250254635,-460.0,0.0001726,2]
[371216375,1752250254645,-515.85,0.0001726,2]
[371216377,1752250254655,-336.83842709,0.0001726,2]
[371216379,1752250254664,-460.0,0.0001726,2]
[371216381,1752250254674,-616.13,0.0001726,2]
[371216383,1752250254684,-460.0,0.0001726,2]
[371216385,1752250254694,-460.0,0.0001726,2]
[371216387,1752250254703,-460.0,0.0001726,2]
[371216390,1752250254713,-460.0,0.0001726,2]
[371216391,1752250254723,-572.59,0.0001726,2]
[371216393,1752250254732,-460.0,0.0001726,2]
[371216395,1752250254742,-460.0,0.0001726,2]
[371216397,1752250254751,-460.0,0.0001726,2]
[371216399,1752250254760,-481.25,0.0001726,2]
[371216401,1752250254773,-5187.5,0.0001726,2]
[371216403,1752250254786,-460.0,0.0001726,2]